lending/lending_fUSD_20260306
["ID","MTS","AMOUNT","RATE_DAILY","PERIOD"]
[407807982,1772814657681,-1436.089081,0.00046575,120]
[407807983,1772814657740,-1436.089081,0.00046575,120]
[407807984,1772814657803,-1436.089081,0.00046575,120]
[407807985,1772814657866,-1436.089081,0.00046575,120]
[407807986,1772814657925,-1436.089081,0.00046575,120]
[407807987,1772814657984,-1436.089081,0.00046575,120]
[407807988,1772814658046,-1436.089081,0.00046575,120]
[407807989,1772814658107,-1436.089081,0.00046575,120]
[407807990,1772814658169,-1436.089081,0.00046575,120]
[407807991,1772814658231,-1436.089081,0.00046575,120]
[407807992,1772814658295,-1436.089073,0.00046575,120]
[407807993,1772814658359,-400.0,0.00046575,120]
[407807994,1772814658422,-400.0,0.00046575,120]
[407807995,1772814658485,-1000.0,0.00046576,120]
[407807996,1772814658549,-485.83,0.00046579,120]
[407807997,1772814658618,-222.32373753,0.00046583,120]
[407807998,1772814658685,-217.3374815,0.00046583,120]
[407807999,1772814658747,-366.68902325,0.00046589,120]
[407808000,1772814658811,-861.0,0.000466,120]
[407808001,1772814658872,-299.0,0.00046614,120]
[407808002,1772814658931,-299.0,0.00046614,120]
[407808003,1772814658996,-1000.0,0.0004664,120]
[407808004,1772814659058,-1000.0,0.0004664,120]
[407808005,1772814659126,-1000.0,0.0004664,120]
[407808006,1772814659188,-1000.0,0.0004664,120]
[407808007,1772814659252,-1040.52835704,0.0004664,120]
[407808008,1772814659313,-1000.0,0.00046656,120]
[407808009,1772814659374,-1000.0,0.00046656,120]
[407808010,1772814659435,-1000.0,0.00046656,120]
[407808011,1772814659498,-1000.0,0.00046656,120]
[407808012,1772814659562,-1040.52835704,0.00046656,120]
[407808013,1772814659624,-162.11,0.00046658,120]
[407808014,1772814659691,-150.0,0.00046665,120]
[407808015,1772814659750,-278.3076083,0.00046688,120]
[407808016,1772814659810,-3000.0,0.000467,120]
[407808017,1772814659870,-500.0,0.00046712,120]
[407808018,1772814659933,-162.11,0.00046758,120]
[407808019,1772814659995,-366.68902324,0.00046779,120]
[407808020,1772814660058,-368.77975253,0.000468,120]
[407808021,1772814660123,-217.55636582,0.000468,120]
[407808022,1772814660203,-150.0,0.00046808,120]
[407808023,1772814660279,-1000.0,0.0004685,120]
[407808024,1772814660351,-485.83,0.00046853,120]
[407808025,1772814660423,-162.11,0.00046858,120]
[407808026,1772814660493,-219.04510115,0.00046874,120]
[407808027,1772814660562,-281.79,0.000469,120]
[407808028,1772814660633,-3981.47249375,0.000469,120]
[407808029,1772814660705,-394.84966951,0.000469,120]
[407808030,1772814660779,-750.1723,0.000469,120]
[407808031,1772814660847,-890.9074,0.000469,120]
[407808032,1772814660910,-360.4845,0.000469,120]
[407808033,1772814660975,-161.35713409,0.000469,120]
[407808034,1772814661040,-213.62871625,0.000469,120]
[407808035,1772814661104,-305.17663862,0.000469,120]
[407808036,1772814661167,-17563.77,0.000469,120]
[407808037,1772814661232,-17563.77,0.000469,120]
[407808038,1772814661295,-3000.0,0.000469,120]
[407808039,1772814661363,-1024.39849652,0.000469,120]
[407808040,1772814661428,-150.0,0.00046911,120]
[407808041,1772814661491,-150.0,0.00046927,120]
[407808042,1772814661556,-216.90002321,0.00046948,120]
[407808043,1772814661619,-216.60838437,0.00046948,120]
[407808044,1772814661683,-216.75420379,0.00046948,120]
[407808045,1772814662149,-162.11,0.00046958,120]
[407808046,1772814662208,-366.68902324,0.00046968,120]
[407808047,1772814662268,-906.07404376,0.00046998,120]
[407808048,1772814662330,-4170.0,0.00047,120]
[407808049,1772814662395,-1362.0,0.00047,120]
[407808050,1772814662454,-9329.0,0.00047,120]
[407808051,1772814662513,-2405.0,0.00047,120]
[407808052,1772814662587,-3233.0,0.00047,120]
[407808053,1772814662650,-2929.0,0.00047,120]
[407808054,1772814662720,-3346.0,0.00047,120]
[407808055,1772814662781,-3347.0,0.00047,120]
[407808056,1772814662846,-3409.80368894,0.00047,120]
[407808057,1772814662909,-956.0,0.00047,120]
[407808058,1772814662971,-3000.0,0.00047,120]
[407808059,1772814663041,-68961.81,0.00047,120]
[407808060,1772814663106,-151.0,0.00047,120]
[407808061,1772814663171,-299.0,0.00047,120]
[407808062,1772814663238,-500.0,0.00047,120]
[407808063,1772814663304,-150.0,0.00047,120]
[407808064,1772814663369,-4500.0,0.00047,120]
[407808065,1772814663434,-150.0,0.00047,120]
[407808066,1772814663500,-150.0,0.00047,120]
[407808067,1772814663563,-150.0,0.00047,120]
[407808068,1772814663624,-150.0,0.00047,120]
[407808069,1772814663699,-162.11,0.00047058,120]
[407808070,1772814663763,-150.0,0.00047086,120]
[407808071,1772814663823,-465.87376448,0.000471,120]
[407808072,1772814663885,-3000.0,0.00047113,120]
[407808073,1772814663946,-500.0,0.00047113,120]
[407808074,1772814664012,-250.0,0.00047113,120]
[407808075,1772814664076,-200.0,0.00047113,120]
[407808076,1772814664141,-2500.0,0.00047113,120]
[407808077,1772814664213,-646.65982734,0.00047113,120]
[407808078,1772814664281,-250.0,0.00047113,120]
[407808079,1772814664349,-1000.0,0.00047113,120]
[407808080,1772814664418,-151.0,0.00047113,120]
[407808081,1772814664485,-621.78829552,0.00047113,120]
[407808082,1772814664553,-220.0,0.00047113,120]
[407808083,1772814664624,-500.0,0.00047113,120]
[407808084,1772814664693,-250.0,0.00047113,120]
[407808085,1772814664759,-187.78006525,0.00047113,120]
[407808086,1772814664825,-3000.0,0.00047113,120]
[407808087,1772814664888,-160.0,0.00047113,120]
[407808088,1772814664956,-1000.0,0.00047113,120]
[407808089,1772814665023,-621.78829552,0.00047113,120]
[407808090,1772814665091,-500.0,0.00047113,120]
[407808091,1772814665158,-1000.0,0.00047113,120]
[407808092,1772814665227,-1280.88388878,0.00047113,120]
[407808093,1772814665295,-187.78006525,0.00047113,120]
[407808094,1772814665381,-187.78006525,0.00047113,120]
[407808095,1772814665464,-3000.0,0.00047113,120]
[407808096,1772814665533,-250.0,0.00047113,120]
[407808097,1772814665602,-1357.0,0.00047113,120]
[407808098,1772814665670,-151.0,0.00047113,120]
[407808099,1772814665740,-500.0,0.00047123,120]
[407808100,1772814665810,-1000.0,0.00047124,120]
[407808101,1772814665880,-485.83,0.00047127,120]
[407808102,1772814665950,-3000.0,0.00047129,120]
[407808103,1772814666018,-500.0,0.00047129,120]
[407808104,1772814666095,-250.0,0.00047129,120]
[407808105,1772814666165,-500.0,0.00047129,120]
[407808106,1772814666230,-200.0,0.00047129,120]
[407808107,1772814666295,-220.0,0.00047129,120]
[407808108,1772814666361,-539.24,0.00047129,120]
[407808109,1772814666430,-2500.0,0.00047129,120]
[407808110,1772814666499,-1718.76473462,0.00047129,120]
[407808111,1772814666562,-250.0,0.00047129,120]
[407808112,1772814666626,-1000.0,0.00047129,120]
[407808113,1772814666692,-518.5,0.00047129,120]
[407808114,1772814666760,-151.0,0.00047129,120]
[407808115,1772814666826,-500.0,0.00047129,120]
[407808116,1772814667104,-250.0,0.00047129,120]
[407808117,1772814667168,-156.587,0.00047129,120]
[407808118,1772814667230,-518.5,0.00047129,120]
[407808119,1772814667294,-3000.0,0.00047129,120]
[407808120,1772814667357,-160.0,0.00047129,120]
[407808121,1772814667421,-156.587,0.00047129,120]
[407808122,1772814667485,-151.0,0.00047129,120]
[407808123,1772814667547,-1000.0,0.00047129,120]
[407808124,1772814667609,-500.0,0.00047129,120]
[407808125,1772814667676,-518.5,0.00047129,120]
[407808126,1772814667739,-1000.0,0.00047129,120]
[407808127,1772814667803,-1068.11,0.00047129,120]
[407808128,1772814667868,-151.0,0.00047129,120]
[407808129,1772814667930,-500.0,0.00047129,120]
[407808130,1772814667992,-156.587,0.00047129,120]
[407808131,1772814668056,-1357.0,0.00047129,120]
[407808132,1772814668122,-156.587,0.00047129,120]
[407808133,1772814668187,-3000.0,0.00047129,120]
[407808134,1772814668253,-250.0,0.00047129,120]
[407808135,1772814668319,-1217.89179769,0.00047129,120]
[407808136,1772814668383,-260.287,0.00047129,120]
[407808137,1772814668452,-151.0,0.00047129,120]
[407808138,1772814668528,-151.0,0.00047129,120]
[407808139,1772814668596,-642.94,0.00047129,120]
[407808140,1772814668661,-151.0,0.00047153,120]
[407808141,1772814668730,-151.0,0.00047153,120]
[407808142,1772814668799,-151.0,0.00047153,120]
[407808143,1772814668865,-151.0,0.00047153,120]
[407808144,1772814668932,-151.0,0.00047153,120]
[407808145,1772814668997,-151.0,0.00047153,120]
[407808146,1772814669063,-151.0,0.00047153,120]
[407808147,1772814669129,-151.0,0.00047153,120]
[407808148,1772814669193,-151.0,0.00047153,120]
[407808149,1772814669258,-151.0,0.00047153,120]
[407808150,1772814669322,-151.0,0.00047153,120]
[407808151,1772814669384,-287.50841925,0.00047153,120]
[407808152,1772814670756,-1762.98,0.00047156,120]
[407808153,1772814670819,-1511.13,0.00047156,120]
[407808154,1772814670883,-825.0,0.00047156,120]
[407808155,1772814670943,-366.68902324,0.00047158,120]
[407808156,1772814671006,-162.11,0.00047158,120]
[407808157,1772814671070,-150.0,0.00047189,120]
[407808158,1772814671131,-153.0,0.000472,120]
[407808159,1772814671197,-1501.4,0.0004725,120]
[407808160,1772814671260,-4172.79,0.0004725,120]
[407808161,1772814671324,-776.98,0.0004725,120]
[407808162,1772814671391,-162.11,0.00047258,120]
[407808163,1772814671453,-150.0,0.00047298,120]
[407808164,1772814671517,-150.0,0.00047299,120]
[407808165,1772814671582,-150.0,0.00047343,120]
[407808166,1772814671649,-366.68902324,0.00047347,120]
[407808167,1772814671712,-162.11,0.00047358,120]
[407808168,1772814671774,-1000.0,0.00047398,120]
[407808169,1772814671837,-468.8508,0.000474,120]
[407808170,1772814671902,-500.0,0.00047401,120]
[407808171,1772814671962,-485.83,0.00047401,120]
[407808172,1772814672029,-162.11,0.00047458,120]
[407808173,1772814672098,-6175.11183416,0.00047461,120]
[407808174,1772814672167,-214.78069403,0.000475,120]
[407808175,1772814672232,-881.1284717,0.000475,120]
[407808176,1772814672297,-6375.93408259,0.000475,120]
[407808177,1772814672365,-299.0,0.000475,120]
[407808178,1772814672431,-500.0,0.000475,120]
[407808179,1772814672497,-500.0,0.00047534,120]
[407808180,1772814672560,-366.68902324,0.00047537,120]
[407808181,1772814672627,-150.0,0.0004755,120]
[407808182,1772814672693,-162.11,0.00047558,120]
[407808183,1772814672753,-162.11,0.00047658,120]
[407808184,1772814672813,-1000.0,0.00047672,120]
[407808185,1772814672871,-485.83,0.00047675,120]
[407808186,1772814672932,-366.68902324,0.00047726,120]
[407808187,1772814672993,-162.11,0.00047758,120]
[407808188,1772814673054,-273.49,0.000478,120]
[407808189,1772814673110,-12152.8201,0.000478,120]
[407808190,1772814673168,-273.59,0.000478,120]
[407808191,1772814673228,-1825.8,0.000478,120]
[407808192,1772814673291,-150.0,0.00047815,120]
[407808193,1772814673726,-162.11,0.00047858,120]
[407808194,1772814673787,-150.0,0.00047873,120]
[407808195,1772814673848,-22334.514,0.000479,120]
[407808196,1772814673905,-3000.0,0.000479,120]
[407808197,1772814673962,-151.0,0.000479,120]
[407808198,1772814674022,-366.68902324,0.00047916,120]
[407808199,1772814674085,-500.0,0.00047945,120]
[407808200,1772814674150,-1000.0,0.00047946,120]
[407808201,1772814674212,-485.83,0.00047949,120]
[407808202,1772814674277,-162.11,0.00047958,120]
[407808203,1772814674339,-167.69349266,0.00048,120]
[407808204,1772814674401,-1055.42700537,0.00048,120]
[407808205,1772814674461,-598.13964771,0.00048,120]
[407808206,1772814674522,-150.0,0.00048,120]
[407808207,1772814674586,-400.0,0.00048,120]
[407808208,1772814674652,-600.0,0.00048,120]
[407808209,1772814674719,-600.0,0.00048,120]
[407808210,1772814674789,-600.0,0.00048,120]
[407808211,1772814674861,-500.0,0.00048,120]
[407808212,1772814674933,-1016.0,0.00048,120]
[407808213,1772814675002,-4523.87920361,0.00048,120]
[407808214,1772814675078,-837.0,0.00048,120]
[407808215,1772814675150,-299.0,0.00048,120]
[407808216,1772814675218,-10219.08861946,0.00048,120]
[407808217,1772814675291,-1150.4860646,0.00048,120]
[407808218,1772814675376,-874.0,0.00048,120]
[407808219,1772814675451,-500.0,0.00048,120]
[407808220,1772814675527,-874.0,0.00048,120]
[407808221,1772814675609,-162.11,0.00048058,120]
[407808222,1772814675688,-153.0,0.000481,120]
[407808223,1772814675767,-366.68902324,0.00048105,120]
[407808224,1772814675853,-1825.8,0.00048158,120]
[407808225,1772814675936,-162.11,0.00048158,120]
[407808226,1772814676018,-1000.0,0.0004822,120]
[407808227,1772814676101,-485.83,0.00048223,120]
[407808228,1772814676187,-162.11,0.00048258,120]
[407808229,1772814676270,-366.68902324,0.00048295,120]
[407808230,1772814676357,-355.0617,0.000483,120]
[407808231,1772814676440,-263.93302686,0.000483,120]
[407808232,1772814676526,-277.12,0.00048348,120]
[407808233,1772814676615,-500.0,0.00048356,120]
[407808234,1772814676712,-162.11,0.00048358,120]
[407808235,1772814676798,-4200.69,0.000484,120]
[407808236,1772814676884,-162.11,0.00048458,120]
[407808237,1772814676970,-366.68902324,0.00048484,120]
[407808238,1772814677056,-500.0,0.00048493,120]
[407808239,1772814677145,-1000.0,0.00048493,120]
[407808240,1772814677236,-440.55882008,0.00048493,120]
[407808241,1772814677325,-1000.0,0.00048494,120]
[407808242,1772814677415,-485.83,0.00048497,120]
[407808243,1772814677506,-982.24650027,0.000485,120]
[407808244,1772814677600,-969.37870389,0.000485,120]
[407808245,1772814677691,-1800.0,0.000485,120]
[407808246,1772814677790,-299.0,0.000485,120]
[407808247,1772814677884,-150.0,0.00048509,120]
[407808248,1772814677983,-1825.8,0.00048516,120]
[407808249,1772814678076,-1135.69,0.00048532,120]
[407808250,1772814678171,-162.11,0.00048558,120]
[407808251,1772814678273,-150.0,0.00048627,120]
[407808252,1772814678369,-162.11,0.00048658,120]
[407808253,1772814678472,-366.68902324,0.00048674,120]
[407808254,1772814678573,-150.0,0.00048698,120]
[407808255,1772814678693,-162.11,0.00048758,120]
[407808256,1772814678810,-500.0,0.00048767,120]
[407808257,1772814678925,-1000.0,0.00048768,120]
[407808258,1772814679023,-485.83,0.00048771,120]
[407808259,1772814679143,-11556.14861681,0.000488,120]
[407808260,1772814679244,-3000.0,0.000488,120]
[407808261,1772814679366,-151.0,0.000488,120]
[407808262,1772814679490,-500.0,0.00048801,120]
[407808263,1772814679612,-150.0,0.00048819,120]
[407808264,1772814679732,-150.0,0.0004882,120]
[407808265,1772814679855,-162.11,0.00048858,120]
[407808266,1772814679955,-366.68902324,0.00048863,120]
[407808267,1772814680062,-1825.8,0.00048874,120]
[407808268,1772814680164,-619.55816765,0.0004888,120]
[407808269,1772814680284,-1000.0,0.00048888,120]
[407808270,1772814680395,-4373.26773562,0.00048889,120]
[407808271,1772814680501,-768.11938864,0.00048899,120]
[407808272,1772814680604,-194.62362953,0.000489,120]
[407808273,1772814680703,-500.0,0.000489,120]
[407808274,1772814680817,-310.71197871,0.000489,120]
[407808275,1772814680936,-310.71197871,0.000489,120]
[407808276,1772814681041,-310.71197871,0.000489,120]
[407808277,1772814681147,-310.71197871,0.000489,120]
[407808278,1772814681250,-310.71197871,0.000489,120]
[407808279,1772814681351,-310.71197871,0.000489,120]
[407808280,1772814681474,-310.71197871,0.000489,120]
[407808281,1772814681578,-310.71197871,0.000489,120]
[407808282,1772814681684,-310.71197871,0.000489,120]
[407808283,1772814681793,-310.71197871,0.000489,120]
[407808284,1772814681894,-310.71197871,0.000489,120]
[407808285,1772814681996,-310.71197871,0.000489,120]
[407808286,1772814682095,-310.71197871,0.000489,120]
[407808287,1772814682190,-310.71197871,0.000489,120]
[407808288,1772814682296,-310.71197871,0.000489,120]
[407808289,1772814682396,-310.71197871,0.000489,120]
[407808290,1772814682492,-310.71197871,0.000489,120]
[407808291,1772814682597,-310.71197871,0.000489,120]
[407808292,1772814682694,-150.0,0.00048902,120]
[407808293,1772814683138,-162.11,0.00048958,120]
[407808294,1772814683231,-826.63660068,0.00049,120]
[407808295,1772814683303,-1120.15502724,0.00049,120]
[407808296,1772814683375,-249.31841272,0.00049,120]
[407808297,1772814683454,-361.26273479,0.00049,120]
[407808298,1772814683529,-1477.95424532,0.00049,120]
[407808299,1772814683599,-194.51942139,0.00049,120]
[407808300,1772814683668,-150.0,0.00049,120]
[407808301,1772814683740,-400.0,0.00049,120]
[407808302,1772814683808,-522.93168269,0.00049,120]
[407808303,1772814683878,-2262.36453253,0.00049,120]
[407808304,1772814683955,-2929.0,0.00049,120]
[407808305,1772814684023,-3346.0,0.00049,120]
[407808306,1772814684094,-3347.0,0.00049,120]
[407808307,1772814684160,-956.0,0.00049,120]
[407808308,1772814684225,-153.0,0.00049,120]
[407808309,1772814684291,-299.0,0.00049,120]
[407808310,1772814684361,-1000.0,0.00049041,120]
[407808311,1772814684426,-485.83,0.00049045,120]
[407808312,1772814684491,-366.68902324,0.00049053,120]
[407808313,1772814684559,-162.11,0.00049058,120]
[407808314,1772814684625,-278.3076083,0.00049091,120]
[407808315,1772814684692,-150.0,0.00049096,120]
[407808316,1772814684758,-255.75,0.000491,120]
[407808317,1772814684822,-162.11,0.00049158,120]
[407808318,1772814684885,-500.0,0.00049178,120]
[407808319,1772814684963,-150.0,0.00049226,120]
[407808320,1772814685032,-1825.8,0.00049232,120]
[407808321,1772814685108,-366.68902324,0.00049242,120]
[407808322,1772814685181,-162.11,0.00049258,120]
[407808323,1772814685249,-20000.0,0.00049315,120]
[407808324,1772814685318,-500.0,0.00049315,120]
[407808325,1772814685390,-500.0,0.00049315,120]
[407808326,1772814685460,-500.0,0.00049315,120]
[407808327,1772814685529,-500.0,0.00049315,120]
[407808328,1772814685597,-500.0,0.00049315,120]
[407808329,1772814685664,-500.0,0.00049315,120]
[407808330,1772814685731,-500.0,0.00049315,120]
[407808331,1772814685798,-500.0,0.00049315,120]
[407808332,1772814685863,-500.0,0.00049315,120]
[407808333,1772814685927,-575.69834849,0.00049315,120]
[407808334,1772814685994,-6798.76,0.00049315,120]
[407808335,1772814686057,-6798.76,0.00049315,120]
[407808336,1772814686121,-6798.76,0.00049315,120]
[407808337,1772814686185,-6798.76,0.00049315,120]
[407808338,1772814686252,-6798.76,0.00049315,120]
[407808339,1772814686319,-6798.76,0.00049315,120]
[407808340,1772814686383,-6798.76,0.00049315,120]
[407808341,1772814686447,-6798.76,0.00049315,120]
[407808342,1772814686510,-6798.76,0.00049315,120]
[407808343,1772814686574,-6798.76,0.00049315,120]
[407808344,1772814686638,-6798.76,0.00049315,120]
[407808345,1772814686714,-6798.76,0.00049315,120]
[407808346,1772814686782,-6798.76,0.00049315,120]
[407808347,1772814686850,-6798.76,0.00049315,120]
[407808348,1772814686917,-6798.76,0.00049315,120]
[407808349,1772814686986,-6798.76,0.00049315,120]
[407808350,1772814687047,-6798.76,0.00049315,120]
[407808351,1772814687111,-6798.76,0.00049315,120]
[407808352,1772814687175,-6798.76,0.00049315,120]
[407808353,1772814687243,-6798.76,0.00049315,120]
[407808354,1772814687307,-6798.76,0.00049315,120]
[407808355,1772814687376,-6798.76,0.00049315,120]
[407808356,1772814687444,-6798.76,0.00049315,120]
[407808357,1772814687507,-6798.84717054,0.00049315,120]
[407808358,1772814687569,-295.07033614,0.00049315,120]
[407808359,1772814687633,-1000.0,0.00049315,120]
[407808360,1772814687695,-485.83,0.00049319,120]
[407808361,1772814687753,-162.11,0.00049358,120]
[407808362,1772814687813,-861.0,0.000494,120]
[407808363,1772814687870,-366.68902324,0.00049432,120]
[407808364,1772814687931,-162.11,0.00049458,120]
[407808365,1772814687989,-312.68883806,0.00049475,120]
[407808366,1772814688048,-700.27360217,0.000495,120]
[407808367,1772814688105,-14911.66511222,0.000495,120]
[407808368,1772814688166,-299.0,0.000495,120]
[407808369,1772814688227,-12000.0,0.00049533,120]
[407808370,1772814688295,-162.11,0.00049558,120]
[407808371,1772814688365,-150.0,0.00049566,120]
[407808372,1772814688428,-500.0,0.00049589,120]
[407808373,1772814688491,-1000.0,0.00049589,120]
[407808374,1772814688556,-1825.8,0.0004959,120]
[407808375,1772814688618,-485.83,0.00049593,120]
[407808376,1772814688680,-441478.56210915,0.000496,120]
[407808377,1772814688741,-1501.4,0.00049613,120]
[407808378,1772814688805,-4172.79,0.00049613,120]
[407808379,1772814688867,-776.98,0.00049613,120]
[407808380,1772814688929,-366.68902324,0.00049621,120]
[407808381,1772814688993,-162.11,0.00049658,120]
[407808382,1772814689054,-1484.70625319,0.0004966,120]
[407808383,1772814689122,-216.90002321,0.00049688,120]
[407808384,1772814689186,-151.0,0.000497,120]
[407808385,1772814689252,-162.11,0.00049758,120]
[407808386,1772814689317,-366.68902324,0.00049811,120]
[407808387,1772814689382,-162.11,0.00049858,120]
[407808388,1772814689448,-151.0,0.00049863,120]
[407808389,1772814689514,-151.0,0.00049863,120]
[407808390,1772814689577,-151.0,0.00049863,120]
[407808391,1772814689638,-151.0,0.00049863,120]
[407808392,1772814689705,-151.0,0.00049863,120]
[407808393,1772814689771,-151.0,0.00049863,120]
[407808394,1772814689834,-151.0,0.00049863,120]
[407808395,1772814690164,-151.0,0.00049863,120]
[407808396,1772814690228,-151.0,0.00049863,120]
[407808397,1772814690293,-151.0,0.00049863,120]
[407808398,1772814690363,-151.0,0.00049863,120]
[407808399,1772814690430,-151.0,0.00049863,120]
[407808400,1772814690496,-151.0,0.00049863,120]
[407808401,1772814690562,-151.0,0.00049863,120]
[407808402,1772814690628,-151.0,0.00049863,120]
[407808403,1772814690695,-151.0,0.00049863,120]
[407808404,1772814690759,-235.42946,0.00049863,120]
[407808405,1772814690824,-1000.0,0.00049863,120]
[407808406,1772814690885,-485.83,0.00049867,120]
[407808407,1772814690946,-5000.0,0.0004988,120]
[407808408,1772814691007,-63600.86,0.000499,120]
[407808409,1772814691068,-1000.0,0.000499,120]
[407808410,1772814691135,-3000.0,0.000499,120]
[407808411,1772814691201,-153.0,0.000499,120]
[407808412,1772814691268,-1825.8,0.00049948,120]
[407808413,1772814691333,-162.11,0.00049958,120]
[407808414,1772814691398,-768.88584414,0.00049999,120]
[407808415,1772814691465,-782.58442395,0.00049999,120]
[407808416,1772814691529,-782.58442395,0.00049999,120]
[407808417,1772814691593,-782.58442395,0.00049999,120]
[407808418,1772814691655,-782.58442395,0.00049999,120]
[407808419,1772814691718,-394.25270121,0.00049999,120]
[407808420,1772814691780,-485.43644897,0.00049999,120]
[407808421,1772814691844,-475.29399688,0.00049999,120]
[407808422,1772814691907,-500.0,0.00049999,120]
[407808423,1772814691971,-782.58442395,0.00049999,120]
[407808424,1772814692032,-609.62029584,0.00049999,120]
[407808425,1772814692100,-505.26236173,0.00049999,120]
[407808426,1772814692162,-500.0,0.00049999,120]
[407808427,1772814692225,-782.58442395,0.00049999,120]
[407808428,1772814692285,-500.0,0.00049999,120]
[407808429,1772814692347,-500.0,0.00049999,120]
[407808430,1772814692411,-500.0,0.00049999,120]
[407808431,1772814692474,-500.0,0.00049999,120]
[407808432,1772814692538,-782.58442395,0.00049999,120]
[407808433,1772814692599,-500.0,0.00049999,120]
[407808434,1772814692656,-500.0,0.00049999,120]
[407808435,1772814692713,-500.0,0.00049999,120]
[407808436,1772814692775,-551.02328279,0.00049999,120]
[407808437,1772814692834,-500.0,0.00049999,120]
[407808438,1772814692896,-607.08552564,0.00049999,120]
[407808439,1772814692957,-551.02328279,0.00049999,120]
[407808440,1772814693015,-551.02328279,0.00049999,120]
[407808441,1772814693073,-551.02328279,0.00049999,120]
[407808442,1772814693131,-551.02328279,0.00049999,120]
[407808443,1772814693189,-782.58442395,0.00049999,120]
[407808444,1772814693251,-551.02328279,0.00049999,120]
[407808445,1772814693311,-782.58442395,0.00049999,120]
[407808446,1772814693372,-551.02328279,0.00049999,120]
[407808447,1772814693433,-551.02328279,0.00049999,120]
[407808448,1772814693496,-551.02328279,0.00049999,120]
[407808449,1772814693557,-551.02328279,0.00049999,120]
[407808450,1772814693621,-551.02328279,0.00049999,120]
[407808451,1772814693691,-551.02328279,0.00049999,120]
[407808452,1772814693767,-551.02328279,0.00049999,120]
[407808453,1772814693831,-551.02328279,0.00049999,120]
[407808454,1772814693893,-551.02328279,0.00049999,120]
[407808455,1772814693958,-551.02328279,0.00049999,120]
[407808456,1772814694022,-551.02328279,0.00049999,120]
[407808457,1772814694084,-551.02328279,0.00049999,120]
[407808458,1772814694148,-551.02328279,0.00049999,120]
[407808459,1772814694212,-551.02328279,0.00049999,120]
[407808460,1772814694277,-782.58442395,0.00049999,120]
[407808461,1772814694342,-551.02328279,0.00049999,120]
[407808462,1772814694404,-551.02328279,0.00049999,120]
[407808463,1772814694473,-551.02328279,0.00049999,120]
[407808464,1772814694539,-551.02328279,0.00049999,120]
[407808465,1772814694606,-551.02328279,0.00049999,120]
[407808466,1772814694680,-551.02328279,0.00049999,120]
[407808467,1772814694745,-551.02328279,0.00049999,120]
[407808468,1772814694811,-551.02328279,0.00049999,120]
[407808469,1772814694871,-551.02328279,0.00049999,120]
[407808470,1772814694937,-551.02328279,0.00049999,120]
[407808471,1772814695003,-551.02328279,0.00049999,120]
[407808472,1772814695069,-551.02328279,0.00049999,120]
[407808473,1772814695135,-551.02328279,0.00049999,120]
[407808474,1772814695211,-551.02328279,0.00049999,120]
[407808475,1772814695282,-551.02328279,0.00049999,120]
[407808476,1772814695351,-551.02328279,0.00049999,120]
[407808477,1772814695422,-551.02328279,0.00049999,120]
[407808478,1772814695491,-551.02328279,0.00049999,120]
[407808479,1772814695557,-551.02328279,0.00049999,120]
[407808480,1772814695623,-551.02328279,0.00049999,120]
[407808481,1772814695695,-631.93411132,0.00049999,120]